[Event "Late-Titled-Tuesday-Blitz-March-26-2024"]
[Site "Chess.com"]
[Date "2024.03.26"]
[Round "6"]
[White "CrushingKings"]
[Black "Byniolus"]
[Result "0-1"]
[WhiteElo "2563"]
[BlackElo "2732"]
[TimeControl "180+1"]
[EndTime "15:06:47 PDT"]
[Termination "Byniolus won by resignation"]

1. Nf3 {[%clk 0:03:00.9]} 1... d5 {[%clk 0:02:58.9]} 2. g3 {[%clk 0:03:01.4]}
2... Nf6 {[%clk 0:02:58.9]} 3. Bg2 {[%clk 0:03:01.9]} 3... Bf5 {[%clk
0:02:59.5]} 4. O-O {[%clk 0:03:01.9]} 4... e6 {[%clk 0:02:59.9]} 5. d3 {[%clk
0:03:02.3]} 5... Be7 {[%clk 0:03:00.1]} 6. c4 {[%clk 0:02:59.5]} 6... c6 {[%clk
0:03:00.3]} 7. cxd5 {[%clk 0:02:59]} 7... cxd5 {[%clk 0:02:56.9]} 8. Nh4 {[%clk
0:02:59]} 8... Bg4 {[%clk 0:02:55]} 9. h3 {[%clk 0:02:59.1]} 9... Bh5 {[%clk
0:02:55.1]} 10. g4 {[%clk 0:02:59.2]} 10... Bg6 {[%clk 0:02:55.1]} 11. Nxg6
{[%clk 0:02:59.9]} 11... hxg6 {[%clk 0:02:56]} 12. e4 {[%clk 0:03:00.2]} 12...
Nc6 {[%clk 0:02:51.8]} 13. Nc3 {[%clk 0:03:00.1]} 13... O-O {[%clk 0:02:38.9]}
14. exd5 {[%clk 0:02:50.1]} 14... exd5 {[%clk 0:02:30.3]} 15. Bf4 {[%clk
0:02:38.8]} 15... d4 {[%clk 0:02:25.9]} 16. Ne4 {[%clk 0:02:37.9]} 16... Nd5
{[%clk 0:02:24.5]} 17. Bd2 {[%clk 0:02:37.5]} 17... Qb6 {[%clk 0:02:16.9]} 18.
Rb1 {[%clk 0:02:17.3]} 18... Ne3 {[%clk 0:02:02]} 19. fxe3 {[%clk 0:01:58.5]}
19... dxe3 {[%clk 0:02:01.6]} 20. Kh1 {[%clk 0:01:57.1]} 20... exd2 {[%clk
0:02:01.5]} 21. Qxd2 {[%clk 0:01:57.8]} 21... Rad8 {[%clk 0:01:57.3]} 22. a3
{[%clk 0:01:51.8]} 22... Ne5 {[%clk 0:01:41.4]} 23. Nc3 {[%clk 0:01:38.4]} 23...
Rxd3 {[%clk 0:01:19.4]} 24. Qe2 {[%clk 0:01:38.2]} 24... Bd6 {[%clk 0:01:09.4]}
25. Nd5 {[%clk 0:01:16.2]} 25... Qb3 {[%clk 0:01:05.9]} 26. Rbd1 {[%clk
0:01:10.6]} 26... Rxh3+ {[%clk 0:00:58.8]} 27. Bxh3 {[%clk 0:01:04.9]} 27...
Qxh3+ {[%clk 0:00:59.7]} 28. Qh2 {[%clk 0:00:59.1]} 28... Qxh2+ {[%clk 0:00:39]}
29. Kxh2 {[%clk 0:01:00]} 29... Nxg4+ {[%clk 0:00:39.5]} 30. Kg2 {[%clk
0:01:00.5]} 30... Rc8 {[%clk 0:00:19.7]} 31. Nf6+ {[%clk 0:00:28.5]} 31... gxf6
{[%clk 0:00:17.5]} 32. Rxd6 {[%clk 0:00:29]} 32... Ne3+ {[%clk 0:00:17.7]} 0-1

[Event "Late-Titled-Tuesday-Blitz-March-26-2024"]
[Site "Chess.com"]
[Date "2024.03.26"]
[Round "6"]
[White "Laico"]
[Black "sotochess"]
[Result "0-1"]
[WhiteElo "2406"]
[BlackElo "2589"]
[TimeControl "180+1"]
[EndTime "15:06:51 PDT"]
[Termination "sotochess won on time"]

1. e4 {[%clk 0:01:00]} 1... d5 {[%clk 0:02:58.9]} 2. exd5 {[%clk 0:00:59.5]}
2... Qxd5 {[%clk 0:02:57.5]} 3. Nc3 {[%clk 0:01:00.1]} 3... Qa5 {[%clk
0:02:57.3]} 4. d4 {[%clk 0:01:00.6]} 4... c6 {[%clk 0:02:55.8]} 5. Nf3 {[%clk
0:01:01.3]} 5... Nf6 {[%clk 0:02:55.7]} 6. Bc4 {[%clk 0:01:02]} 6... Bg4 {[%clk
0:02:54.1]} 7. h3 {[%clk 0:01:02]} 7... Bh5 {[%clk 0:02:54.1]} 8. g4 {[%clk
0:01:02.3]} 8... Bg6 {[%clk 0:02:54.1]} 9. Ne5 {[%clk 0:01:02.7]} 9... Nbd7
{[%clk 0:02:54.7]} 10. Nxg6 {[%clk 0:01:01.8]} 10... hxg6 {[%clk 0:02:54.5]} 11.
Qe2 {[%clk 0:01:00.9]} 11... e6 {[%clk 0:02:52.8]} 12. Bd2 {[%clk 0:00:59.2]}
12... Qb6 {[%clk 0:02:52]} 13. O-O-O {[%clk 0:00:59.3]} 13... Qxd4 {[%clk
0:02:51.8]} 14. Bxe6 {[%clk 0:00:57.6]} 14... O-O-O {[%clk 0:02:26.9]} 15. Bg5
{[%clk 0:00:51.2]} 15... Qc5 {[%clk 0:02:05.8]} 16. Bxf6 {[%clk 0:00:49.8]}
16... gxf6 {[%clk 0:01:46.7]} 17. Bxd7+ {[%clk 0:00:49.7]} 17... Kc7 {[%clk
0:01:46.5]} 18. Ne4 {[%clk 0:00:31.3]} 18... Qe7 {[%clk 0:01:34.1]} 19. Bxc6
{[%clk 0:00:13.2]} 19... Bh6+ {[%clk 0:01:31.9]} 20. Kb1 {[%clk 0:00:12.9]}
20... bxc6 {[%clk 0:01:20.5]} 21. Qc4 {[%clk 0:00:12.4]} 21... f5 {[%clk
0:01:04.7]} 22. Nc5 {[%clk 0:00:12.3]} 22... Bd2 {[%clk 0:00:44.8]} 23. a4
{[%clk 0:00:04.9]} 23... Rd5 {[%clk 0:00:43.2]} 24. Nd3 {[%clk 0:00:02.3]} 24...
Ba5 {[%clk 0:00:36.9]} 25. c3 {[%clk 0:00:02.3]} 25... Qe4 {[%clk 0:00:29.9]}
0-1

[Event "Late-Titled-Tuesday-Blitz-March-26-2024"]
[Site "Chess.com"]
[Date "2024.03.26"]
[Round "6"]
[White "cristianserban1"]
[Black "yuriydovzik"]
[Result "1-0"]
[WhiteElo "2545"]
[BlackElo "2112"]
[TimeControl "180+1"]
[EndTime "15:06:53 PDT"]
[Termination "cristianserban1 won on time"]

1. Nf3 {[%clk 0:03:00.9]} 1... b6 {[%clk 0:02:56.6]} 2. b3 {[%clk 0:03:01.8]}
2... Bb7 {[%clk 0:02:56]} 3. Bb2 {[%clk 0:03:02.7]} 3... f6 {[%clk 0:02:52.3]}
4. d4 {[%clk 0:03:02.1]} 4... d5 {[%clk 0:02:47.4]} 5. Nbd2 {[%clk 0:03:02]}
5... e6 {[%clk 0:02:46.4]} 6. e3 {[%clk 0:03:00.2]} 6... Bd6 {[%clk 0:02:42]} 7.
Bd3 {[%clk 0:02:59.9]} 7... f5 {[%clk 0:02:36.2]} 8. c4 {[%clk 0:02:58.8]} 8...
c6 {[%clk 0:02:31.2]} 9. O-O {[%clk 0:02:53.5]} 9... Nd7 {[%clk 0:02:30.3]} 10.
Ne5 {[%clk 0:02:53.2]} 10... Nxe5 {[%clk 0:02:25.2]} 11. dxe5 {[%clk 0:02:54.1]}
11... Bc7 {[%clk 0:02:23.4]} 12. cxd5 {[%clk 0:02:52.9]} 12... cxd5 {[%clk
0:02:21.5]} 13. Nf3 {[%clk 0:02:49.8]} 13... Nh6 {[%clk 0:02:14.1]} 14. Bb5+
{[%clk 0:02:45.7]} 14... Kf7 {[%clk 0:02:09.2]} 15. Nd4 {[%clk 0:02:42.3]} 15...
Qe7 {[%clk 0:01:38.5]} 16. Qh5+ {[%clk 0:02:38.7]} 16... Kg8 {[%clk 0:01:33.4]}
17. Rac1 {[%clk 0:02:31.4]} 17... Bxe5 {[%clk 0:01:14.9]} 18. Bc6 {[%clk
0:02:08.6]} 18... Bxd4 {[%clk 0:01:05.9]} 19. Bxb7 {[%clk 0:02:04.7]} 19... Bxb2
{[%clk 0:00:57.3]} 20. Bxa8 {[%clk 0:02:03.8]} 20... Bxc1 {[%clk 0:00:55.5]} 21.
Rxc1 {[%clk 0:02:04.7]} 21... Nf7 {[%clk 0:00:44.7]} 22. Rc8+ {[%clk 0:01:49.6]}
22... Nd8 {[%clk 0:00:43.9]} 23. h4 {[%clk 0:01:45]} 23... g6 {[%clk 0:00:41.3]}
24. Qg5 {[%clk 0:01:44.9]} 24... Kf7 {[%clk 0:00:34.1]} 25. Qxe7+ {[%clk
0:01:42.6]} 25... Kxe7 {[%clk 0:00:34]} 26. Rc7+ {[%clk 0:01:43.5]} 26... Kd6
{[%clk 0:00:32.9]} 27. Rxa7 {[%clk 0:01:44.4]} 27... Nc6 {[%clk 0:00:30.2]} 28.
Bxc6 {[%clk 0:01:43.9]} 28... Kxc6 {[%clk 0:00:29.7]} 29. g3 {[%clk 0:01:44.8]}
29... h6 {[%clk 0:00:23]} 30. Rg7 {[%clk 0:01:44.4]} 30... g5 {[%clk 0:00:22]}
31. hxg5 {[%clk 0:01:45.3]} 31... hxg5 {[%clk 0:00:21.6]} 32. Rxg5 {[%clk
0:01:46.2]} 32... Ra8 {[%clk 0:00:20.7]} 33. a4 {[%clk 0:01:46.7]} 33... b5
{[%clk 0:00:18]} 34. Rg6 {[%clk 0:01:43.3]} 34... Kd6 {[%clk 0:00:17.6]} 35.
axb5 {[%clk 0:01:43]} 35... Ra5 {[%clk 0:00:15.5]} 36. Kg2 {[%clk 0:01:27.9]}
36... Rxb5 {[%clk 0:00:15.2]} 37. Kf3 {[%clk 0:01:28.6]} 37... Rxb3 {[%clk
0:00:15]} 38. Kf4 {[%clk 0:01:29]} 38... Rb2 {[%clk 0:00:14.9]} 39. Kf3 {[%clk
0:01:29.5]} 39... Rd2 {[%clk 0:00:13]} 40. Rg8 {[%clk 0:01:29.5]} 40... Ke7
{[%clk 0:00:10.1]} 41. Ra8 {[%clk 0:01:28.4]} 41... Kf6 {[%clk 0:00:09.8]} 42.
Rh8 {[%clk 0:01:28.1]} 42... Rb2 {[%clk 0:00:09.2]} 43. Rh6+ {[%clk 0:01:28.6]}
43... Ke5 {[%clk 0:00:08.4]} 44. Rh5 {[%clk 0:01:27.5]} 44... Kf6 {[%clk
0:00:08]} 45. Rh4 {[%clk 0:01:28]} 45... Ke5 {[%clk 0:00:07.2]} 46. Rf4 {[%clk
0:01:28.4]} 46... Rc2 {[%clk 0:00:06.6]} 47. Kg2 {[%clk 0:01:28.8]} 47... Ra2
{[%clk 0:00:06.4]} 48. g4 {[%clk 0:01:25.8]} 48... fxg4 {[%clk 0:00:05.6]} 49.
Kg3 {[%clk 0:01:26.7]} 49... Rb2 {[%clk 0:00:04.3]} 50. Kxg4 {[%clk 0:01:26.6]}
50... Rc2 {[%clk 0:00:04.2]} 51. Rf8 {[%clk 0:01:26.7]} 51... Rc4+ {[%clk
0:00:03.8]} 52. Kg3 {[%clk 0:01:25.7]} 52... Ra4 {[%clk 0:00:01.3]} 53. Rh8
{[%clk 0:01:24.5]} 1-0

[Event "Late-Titled-Tuesday-Blitz-March-26-2024"]
[Site "Chess.com"]
[Date "2024.03.26"]
[Round "6"]
[White "Irishchessman16"]
[Black "CarlosjPineror"]
[Result "0-1"]
[WhiteElo "2555"]
[BlackElo "2724"]
[TimeControl "180+1"]
[EndTime "15:06:57 PDT"]
[Termination "CarlosjPineror won by checkmate"]

1. e4 {[%clk 0:03:00.9]} 1... c5 {[%clk 0:03:00]} 2. Nf3 {[%clk 0:03:00.5]} 2...
e6 {[%clk 0:03:00.5]} 3. c3 {[%clk 0:03:00.9]} 3... Nf6 {[%clk 0:03:00.2]} 4. e5
{[%clk 0:03:00.3]} 4... Nd5 {[%clk 0:03:00.8]} 5. d4 {[%clk 0:02:58.1]} 5...
cxd4 {[%clk 0:03:01.7]} 6. cxd4 {[%clk 0:02:57.4]} 6... b6 {[%clk 0:03:02.4]} 7.
Nc3 {[%clk 0:02:55.2]} 7... Nxc3 {[%clk 0:03:01.9]} 8. bxc3 {[%clk 0:02:55.4]}
8... Qc7 {[%clk 0:03:02.8]} 9. Rb1 {[%clk 0:02:52.3]} 9... Bb7 {[%clk 0:03:01]}
10. Be2 {[%clk 0:02:47.4]} 10... Nc6 {[%clk 0:03:01]} 11. O-O {[%clk 0:02:47]}
11... Na5 {[%clk 0:03:01.7]} 12. Bg5 {[%clk 0:02:34.5]} 12... h6 {[%clk
0:03:01]} 13. Bh4 {[%clk 0:02:31.1]} 13... Rc8 {[%clk 0:03:01.5]} 14. c4 {[%clk
0:02:23.3]} 14... Nxc4 {[%clk 0:03:01]} 15. Rc1 {[%clk 0:02:21.6]} 15... b5
{[%clk 0:02:57.9]} 16. Nd2 {[%clk 0:02:19]} 16... Bd5 {[%clk 0:02:57.4]} 17. Bh5
{[%clk 0:02:11]} 17... Be7 {[%clk 0:02:42.5]} 18. Nxc4 {[%clk 0:02:00.5]} 18...
bxc4 {[%clk 0:02:41]} 19. Bxe7 {[%clk 0:01:49.2]} 19... Kxe7 {[%clk 0:02:41.3]}
20. Qg4 {[%clk 0:01:42.5]} 20... g6 {[%clk 0:02:29.1]} 21. Qh4+ {[%clk
0:01:41.9]} 21... g5 {[%clk 0:02:29.5]} 22. Qg3 {[%clk 0:01:37.8]} 22... Rhg8
{[%clk 0:01:56.4]} 23. f4 {[%clk 0:01:35.9]} 23... Qb6 {[%clk 0:01:52.5]} 24.
fxg5 {[%clk 0:01:18.7]} 24... Rxg5 {[%clk 0:01:52.1]} 25. Rxf7+ {[%clk
0:01:15.5]} 25... Kd8 {[%clk 0:01:52.2]} 26. Qh4 {[%clk 0:00:54.7]} 26... Kc7
{[%clk 0:01:39.1]} 27. Bf3 {[%clk 0:00:34.9]} 27... Qb2 {[%clk 0:01:26]} 28. Rf1
{[%clk 0:00:20.6]} 28... Rxg2+ {[%clk 0:01:03.1]} 29. Kh1 {[%clk 0:00:20.3]}
29... Bxf3 {[%clk 0:01:03.5]} 30. R7xf3 {[%clk 0:00:19.3]} 30... Rcg8 {[%clk
0:01:04.2]} 31. d5 {[%clk 0:00:18.6]} 31... Qe2 {[%clk 0:00:37.9]} 32. d6+
{[%clk 0:00:18.6]} 32... Kc6 {[%clk 0:00:32.9]} 33. Qf4 {[%clk 0:00:16.2]} 33...
R8g4 {[%clk 0:00:29.3]} 34. Qf8 {[%clk 0:00:15.4]} 34... Rxh2# {[%clk
0:00:25.9]} 0-1

[Event "Late-Titled-Tuesday-Blitz-March-26-2024"]
[Site "Chess.com"]
[Date "2024.03.26"]
[Round "6"]
[White "Kavyev_Ruslan"]
[Black "frequentblunders"]
[Result "1-0"]
[WhiteElo "2393"]
[BlackElo "2208"]
[TimeControl "180+1"]
[EndTime "15:06:58 PDT"]
[Termination "Kavyev_Ruslan won on time"]

1. d4 {[%clk 0:03:00.9]} 1... e6 {[%clk 0:02:59.4]} 2. c4 {[%clk 0:02:58]} 2...
c5 {[%clk 0:02:59.9]} 3. d5 {[%clk 0:02:57.7]} 3... Nf6 {[%clk 0:02:58.3]} 4.
Nf3 {[%clk 0:02:57.1]} 4... d6 {[%clk 0:02:55.7]} 5. g3 {[%clk 0:02:55.7]} 5...
g6 {[%clk 0:02:55.4]} 6. Bg2 {[%clk 0:02:55.5]} 6... exd5 {[%clk 0:02:53.2]} 7.
cxd5 {[%clk 0:02:56]} 7... Bg7 {[%clk 0:02:53.2]} 8. Nc3 {[%clk 0:02:55.5]} 8...
O-O {[%clk 0:02:54.1]} 9. O-O {[%clk 0:02:54.9]} 9... Re8 {[%clk 0:02:54.3]} 10.
Nd2 {[%clk 0:02:53.3]} 10... a6 {[%clk 0:02:50.9]} 11. a4 {[%clk 0:02:52.6]}
11... Nbd7 {[%clk 0:02:41.8]} 12. Nc4 {[%clk 0:02:50]} 12... Qe7 {[%clk
0:02:38.1]} 13. Bf4 {[%clk 0:02:41.2]} 13... Ne5 {[%clk 0:02:38.2]} 14. Bxe5
{[%clk 0:02:27]} 14... dxe5 {[%clk 0:02:39.1]} 15. d6 {[%clk 0:02:27.5]} 15...
Qe6 {[%clk 0:02:35.5]} 16. Nd5 {[%clk 0:01:51.9]} 16... Bd7 {[%clk 0:01:57.2]}
17. Ncb6 {[%clk 0:01:06]} 17... e4 {[%clk 0:01:04.4]} 18. Nc7 {[%clk 0:00:51]}
18... Qe5 {[%clk 0:00:46.2]} 19. Nbxa8 {[%clk 0:00:44.1]} 19... Ng4 {[%clk
0:00:32.9]} 20. Nb6 {[%clk 0:00:35.6]} 20... e3 {[%clk 0:00:25.1]} 21. Nxd7
{[%clk 0:00:25.6]} 21... exf2+ {[%clk 0:00:18.2]} 22. Kh1 {[%clk 0:00:15.8]}
22... Qh5 {[%clk 0:00:03.9]} 23. h3 {[%clk 0:00:16.1]} 1-0

[Event "Late-Titled-Tuesday-Blitz-March-26-2024"]
[Site "Chess.com"]
[Date "2024.03.26"]
[Round "6"]
[White "rdarruda"]
[Black "UK_23"]
[Result "1-0"]
[WhiteElo "2528"]
[BlackElo "2385"]
[TimeControl "180+1"]
[EndTime "15:07:03 PDT"]
[Termination "rdarruda won by resignation"]

1. d4 {[%clk 0:02:59.7]} 1... d5 {[%clk 0:03:00.2]} 2. Nf3 {[%clk 0:02:58.5]}
2... Nf6 {[%clk 0:03:00]} 3. c4 {[%clk 0:02:58.5]} 3... e6 {[%clk 0:03:00.1]} 4.
e3 {[%clk 0:02:58.8]} 4... a6 {[%clk 0:02:58.1]} 5. Nc3 {[%clk 0:02:58.3]} 5...
b6 {[%clk 0:02:58.3]} 6. Bd3 {[%clk 0:02:57.8]} 6... Bb7 {[%clk 0:02:58.1]} 7.
O-O {[%clk 0:02:57.8]} 7... Bd6 {[%clk 0:02:56.4]} 8. Qc2 {[%clk 0:02:56.8]}
8... O-O {[%clk 0:02:53]} 9. e4 {[%clk 0:02:56.7]} 9... dxe4 {[%clk 0:02:50.8]}
10. Nxe4 {[%clk 0:02:57.6]} 10... Nxe4 {[%clk 0:02:50.6]} 11. Bxe4 {[%clk
0:02:58.5]} 11... Bxe4 {[%clk 0:02:50.9]} 12. Qxe4 {[%clk 0:02:59]} 12... Nd7
{[%clk 0:02:51.3]} 13. Bg5 {[%clk 0:02:55.8]} 13... Nf6 {[%clk 0:02:47.1]} 14.
Qh4 {[%clk 0:02:54.4]} 14... Be7 {[%clk 0:02:46.7]} 15. Rad1 {[%clk 0:02:52]}
15... h6 {[%clk 0:02:46]} 16. Bc1 {[%clk 0:02:49.7]} 16... b5 {[%clk 0:02:39]}
17. b3 {[%clk 0:02:46.9]} 17... bxc4 {[%clk 0:02:38.7]} 18. bxc4 {[%clk
0:02:40]} 18... Rb8 {[%clk 0:02:37.8]} 19. Qg3 {[%clk 0:02:37.1]} 19... Kh8
{[%clk 0:02:32.3]} 20. Ne5 {[%clk 0:02:36.2]} 20... Qe8 {[%clk 0:02:23.9]} 21.
h3 {[%clk 0:02:27.3]} 21... c5 {[%clk 0:02:12.4]} 22. d5 {[%clk 0:02:23.6]}
22... exd5 {[%clk 0:02:12]} 23. cxd5 {[%clk 0:02:24.2]} 23... Bd6 {[%clk
0:02:12.2]} 24. Rfe1 {[%clk 0:02:23.8]} 24... Bxe5 {[%clk 0:02:06.8]} 25. Rxe5
{[%clk 0:02:22.4]} 25... Qa4 {[%clk 0:02:07.4]} 26. Rde1 {[%clk 0:02:10.7]}
26... Qxa2 {[%clk 0:02:01.2]} 27. d6 {[%clk 0:02:09.4]} 27... Rbd8 {[%clk
0:01:54.6]} 28. Rxc5 {[%clk 0:02:08.9]} 28... Qb1 {[%clk 0:01:39.9]} 29. Bd2
{[%clk 0:01:52.4]} 29... Qb6 {[%clk 0:01:35.4]} 30. Rec1 {[%clk 0:01:32.2]}
30... Qxd6 {[%clk 0:01:33.2]} 31. Bf4 {[%clk 0:01:32.8]} 31... Qd3 {[%clk
0:01:26.3]} 32. Qh4 {[%clk 0:01:27.6]} 32... Ne4 {[%clk 0:01:19.5]} 33. Rh5
{[%clk 0:01:22.2]} 33... Qa3 {[%clk 0:00:39.8]} 34. Bxh6 {[%clk 0:01:03.6]}
34... Kg8 {[%clk 0:00:22.9]} 35. Be3 {[%clk 0:00:47.2]} 35... f6 {[%clk
0:00:21.8]} 36. Qxe4 {[%clk 0:00:46]} 36... Rfe8 {[%clk 0:00:20.7]} 37. Qh7+
{[%clk 0:00:45.5]} 37... Kf7 {[%clk 0:00:20.7]} 38. Bh6 {[%clk 0:00:44.6]} 38...
Rg8 {[%clk 0:00:19.9]} 39. Be3 {[%clk 0:00:42.5]} 39... Rde8 {[%clk 0:00:19.9]}
40. Rc7+ {[%clk 0:00:40.8]} 40... Re7 {[%clk 0:00:18.9]} 41. Rxe7+ {[%clk
0:00:40.8]} 41... Qxe7 {[%clk 0:00:19.8]} 42. Rc5 {[%clk 0:00:39.3]} 42... Rb8
{[%clk 0:00:16.9]} 43. Qh5+ {[%clk 0:00:39.8]} 43... g6 {[%clk 0:00:16.8]} 44.
Qh7+ {[%clk 0:00:39.3]} 44... Ke6 {[%clk 0:00:17.7]} 45. Rc6+ {[%clk 0:00:38.3]}
45... Kd7 {[%clk 0:00:17.7]} 46. Rc7+ {[%clk 0:00:38.7]} 1-0

[Event "Late-Titled-Tuesday-Blitz-March-26-2024"]
[Site "Chess.com"]
[Date "2024.03.26"]
[Round "6"]
[White "OparinGrigoriy"]
[Black "BardArtem"]
[Result "0-1"]
[WhiteElo "2972"]
[BlackElo "2836"]
[TimeControl "180+1"]
[EndTime "15:07:05 PDT"]
[Termination "BardArtem won by resignation"]

1. Nc3 {[%clk 0:03:00.9]} 1... d5 {[%clk 0:02:58.4]} 2. d4 {[%clk 0:03:01.6]}
2... Nf6 {[%clk 0:02:57.9]} 3. Bf4 {[%clk 0:03:02]} 3... c5 {[%clk 0:02:58.3]}
4. e3 {[%clk 0:03:02.3]} 4... cxd4 {[%clk 0:02:58.5]} 5. exd4 {[%clk 0:03:03.2]}
5... a6 {[%clk 0:02:58.5]} 6. Nf3 {[%clk 0:02:59.8]} 6... Nc6 {[%clk 0:02:58.9]}
7. Ne5 {[%clk 0:02:59.3]} 7... Bd7 {[%clk 0:02:59.2]} 8. Nxd7 {[%clk 0:02:56]}
8... Qxd7 {[%clk 0:03:00.1]} 9. Qd2 {[%clk 0:02:52.6]} 9... e6 {[%clk
0:02:59.3]} 10. f3 {[%clk 0:02:50.5]} 10... Bd6 {[%clk 0:02:57.5]} 11. Be3
{[%clk 0:02:49.4]} 11... Rc8 {[%clk 0:02:52.8]} 12. Ne2 {[%clk 0:02:49.4]} 12...
O-O {[%clk 0:02:49.7]} 13. c3 {[%clk 0:02:49.4]} 13... e5 {[%clk 0:02:48.5]} 14.
dxe5 {[%clk 0:02:48.6]} 14... Bxe5 {[%clk 0:02:42.1]} 15. O-O-O {[%clk
0:02:41.3]} 15... Nb4 {[%clk 0:02:30.4]} 16. Kb1 {[%clk 0:02:38.2]} 16... Qf5+
{[%clk 0:02:30]} 17. Ka1 {[%clk 0:02:26.5]} 17... Nc2+ {[%clk 0:02:29.6]} 18.
Kb1 {[%clk 0:02:26.7]} 18... Nxe3+ {[%clk 0:02:28.6]} 19. Qd3 {[%clk 0:02:26.9]}
19... Qxd3+ {[%clk 0:02:21.5]} 20. Rxd3 {[%clk 0:02:27.8]} 20... Nxf1 {[%clk
0:02:19.3]} 21. Rxf1 {[%clk 0:02:28.7]} 21... Rfd8 {[%clk 0:02:16.7]} 22. g3
{[%clk 0:02:27]} 22... Kf8 {[%clk 0:02:14.7]} 23. Rfd1 {[%clk 0:02:27.6]} 23...
Rd7 {[%clk 0:02:05.2]} 24. Nc1 {[%clk 0:02:28.2]} 24... Rcd8 {[%clk 0:02:02.1]}
25. Nb3 {[%clk 0:02:28.9]} 25... b6 {[%clk 0:02:01.9]} 26. a4 {[%clk 0:02:29.3]}
26... Ne8 {[%clk 0:01:53.3]} 27. a5 {[%clk 0:02:26.5]} 27... Bc7 {[%clk
0:01:49.8]} 28. Nd4 {[%clk 0:02:22.7]} 28... Rd6 {[%clk 0:01:42.3]} 29. Nf5
{[%clk 0:02:17.7]} 29... Rf6 {[%clk 0:01:42.3]} 30. Rxd5 {[%clk 0:02:14.2]}
30... Rxf5 {[%clk 0:01:40.4]} 31. Rxd8 {[%clk 0:02:13.9]} 31... Bxd8 {[%clk
0:01:40.8]} 32. Rxd8 {[%clk 0:02:14.4]} 32... Rxa5 {[%clk 0:01:40.1]} 33. Kc2
{[%clk 0:02:13.8]} 33... Rf5 {[%clk 0:01:32.2]} 34. f4 {[%clk 0:02:12.9]} 34...
g5 {[%clk 0:01:32.4]} 35. fxg5 {[%clk 0:02:12.8]} 35... Rf2+ {[%clk 0:01:25.2]}
36. Kb1 {[%clk 0:02:11.5]} 36... Rxh2 {[%clk 0:01:25.3]} 37. Rb8 {[%clk
0:02:12.1]} 37... b5 {[%clk 0:01:23.4]} 38. Rb6 {[%clk 0:02:12.4]} 38... Rg2
{[%clk 0:01:23.7]} 39. Rxa6 {[%clk 0:02:09.7]} 39... Rxg3 {[%clk 0:01:24]} 40.
Rh6 {[%clk 0:02:08.3]} 40... Kg7 {[%clk 0:01:22.7]} 41. Rh5 {[%clk 0:02:06.1]}
41... Nd6 {[%clk 0:01:23.1]} 42. Ka2 {[%clk 0:02:03.7]} 42... Rg2 {[%clk
0:01:20.1]} 43. Ka1 {[%clk 0:01:57.6]} 43... Nc4 {[%clk 0:01:18.5]} 44. b3
{[%clk 0:01:58.1]} 44... Nd2 {[%clk 0:01:16.3]} 45. Kb2 {[%clk 0:01:57.1]} 45...
Ne4+ {[%clk 0:01:15.7]} 46. Ka3 {[%clk 0:01:57.2]} 46... Nxc3 {[%clk 0:01:13.3]}
47. Kb4 {[%clk 0:01:56.9]} 47... Ne4 {[%clk 0:01:12.7]} 48. Rh4 {[%clk
0:01:56.3]} 48... Nd6 {[%clk 0:00:57]} 49. Kc5 {[%clk 0:01:55.9]} 49... Rd2
{[%clk 0:00:56.3]} 50. Rh6 {[%clk 0:01:52.4]} 50... Ne4+ {[%clk 0:00:56.1]} 51.
Kxb5 {[%clk 0:01:52.2]} 51... Nxg5 {[%clk 0:00:56.5]} 52. Rh1 {[%clk 0:01:51.8]}
52... Kg6 {[%clk 0:00:55.3]} 53. b4 {[%clk 0:01:52.4]} 53... h5 {[%clk
0:00:55.2]} 54. Kc6 {[%clk 0:01:53.1]} 54... Ne6 {[%clk 0:00:53.8]} 55. b5
{[%clk 0:01:53.6]} 55... Nd4+ {[%clk 0:00:54.2]} 56. Kc5 {[%clk 0:01:54]} 56...
Nxb5 {[%clk 0:00:54.8]} 57. Kxb5 {[%clk 0:01:54.6]} 57... Rc2 {[%clk 0:00:55.2]}
58. Kb4 {[%clk 0:01:54.7]} 58... Rc8 {[%clk 0:00:54.6]} 59. Rg1+ {[%clk
0:01:54.4]} 59... Kh6 {[%clk 0:00:54.8]} 60. Rf1 {[%clk 0:01:55.1]} 60... h4
{[%clk 0:00:43.8]} 61. Rxf7 {[%clk 0:01:54.4]} 61... Kh5 {[%clk 0:00:44.2]} 62.
Rh7+ {[%clk 0:01:51.7]} 62... Kg4 {[%clk 0:00:44.4]} 63. Rg7+ {[%clk 0:01:52.3]}
63... Kh3 {[%clk 0:00:44.7]} 64. Kb3 {[%clk 0:01:52.3]} 64... Kh2 {[%clk
0:00:45.1]} 65. Kb2 {[%clk 0:01:51.9]} 65... h3 {[%clk 0:00:45.6]} 66. Rg6
{[%clk 0:01:51.4]} 66... Kh1 {[%clk 0:00:46.1]} 67. Rg7 {[%clk 0:01:51.6]} 67...
h2 {[%clk 0:00:46.6]} 68. Rg6 {[%clk 0:01:52.3]} 68... Rf8 {[%clk 0:00:38.1]}
69. Kc2 {[%clk 0:01:52.7]} 69... Rf1 {[%clk 0:00:19.6]} 70. Kd3 {[%clk
0:01:50.9]} 70... Rg1 {[%clk 0:00:19.9]} 71. Rh6 {[%clk 0:01:46.7]} 71... Kg2
{[%clk 0:00:20]} 72. Rg6+ {[%clk 0:01:46.9]} 72... Kf3 {[%clk 0:00:19.6]} 73.
Rf6+ {[%clk 0:01:43.9]} 73... Kg4 {[%clk 0:00:19.7]} 74. Rg6+ {[%clk 0:01:43.2]}
74... Kf5 {[%clk 0:00:20.1]} 75. Rh6 {[%clk 0:01:43.2]} 75... h1=Q {[%clk
0:00:19.8]} 0-1